bitfinex/quotes_BTCUSD_20250619
["timestamp","ask_amount","ask_price","bid_price","bid_amount"]
[1750309982998,0.39129107,105220.0,105210.0,0.56683982]
[1750309983220,0.42934978,105220.0,105210.0,0.56683982]
[1750309983449,0.40079478,105220.0,105210.0,0.56683982]
[1750309983906,0.40079478,105220.0,105210.0,0.56883982]
[1750309984349,0.39129107,105220.0,105210.0,0.56883982]
[1750309984570,0.40079478,105220.0,105210.0,0.37643982]
[1750309984787,0.40079478,105220.0,105210.0,0.56983982]
[1750309985214,0.40079478,105220.0,105210.0,0.41591982]
[1750309985427,0.41029858,105220.0,105210.0,0.56983982]
[1750309985650,0.38751756,105220.0,105210.0,0.56983982]
[1750309986286,0.38751837,105220.0,105210.0,0.56983982]
[1750309986775,0.55858933,105220.0,105210.0,0.50173123]
[1750309987000,0.55858933,105220.0,105210.0,0.04248]
[1750309987208,0.60937131,105220.0,105210.0,0.1964]
[1750309988148,0.60937131,105220.0,105210.0,0.04248]
[1750309988490,0.60937131,105220.0,105210.0,0.1964]
[1750309988700,0.60937131,105220.0,105210.0,0.003]
[1750309988861,0.5639006,105210.0,105200.0,0.22025957]
[1750309989066,0.5870006,105210.0,105200.0,0.37417957]
[1750309989334,0.5870006,105210.0,105200.0,0.22025957]
[1750309989513,0.60977387,105210.0,105200.0,0.37417957]
[1750309990131,0.60977387,105210.0,105200.0,0.37421957]
[1750309990475,0.5870006,105210.0,105200.0,0.37421957]
[1750309990690,0.60976523,105210.0,105190.0,0.3623868]
[1750309990898,0.23764085,105200.0,105190.0,0.46882266]
[1750309991108,0.23764085,105200.0,105190.0,0.54260872]
[1750309991528,0.23764085,105200.0,105190.0,0.56660872]
[1750309991711,0.23764085,105200.0,105190.0,0.41264872]
[1750309991951,0.23764085,105200.0,105190.0,0.56660872]
[1750309992375,0.05152679,105200.0,105190.0,0.42215469]
[1750309992587,0.05152679,105200.0,105190.0,0.57611469]
[1750309992995,0.05252679,105200.0,105190.0,0.57611469]
[1750309993856,0.04402109,105200.0,105190.0,0.57611469]
[1750309994499,0.075961,105210.0,105190.0,0.57611397]
[1750309994716,0.26605699,105210.0,105190.0,0.57611397]
[1750309994928,0.02851548,105200.0,105190.0,0.57611397]
[1750309996671,0.02951548,105200.0,105190.0,0.57611397]
[1750309996880,0.039021,105200.0,105190.0,0.57611397]
[1750309997225,0.039021,105200.0,105190.0,0.42215397]
[1750309997441,0.04852661,105200.0,105190.0,0.56660809]
[1750309997861,0.039021,105200.0,105190.0,0.56660809]
[1750309998307,0.02951548,105200.0,105190.0,0.41264809]
[1750309998518,0.02951548,105200.0,105190.0,0.56660809]
[1750309998733,0.039021,105200.0,105190.0,0.56660809]
[1750310000348,0.02001005,105200.0,105190.0,0.56660809]
[1750310000614,0.02951548,105200.0,105190.0,0.56660809]
[1750310001594,0.039021,105200.0,105190.0,0.56660809]
[1750310002260,0.02001005,105200.0,105190.0,0.56660809]
[1750310002469,0.02951548,105200.0,105190.0,0.56660809]
[1750310003137,0.21963017,105200.0,105190.0,0.49879669]
[1750310003370,0.21012501,105200.0,105190.0,0.2029466]
[1750310003606,0.20061958,105200.0,105190.0,0.2029466]
[1750310004124,0.19963874,105190.0,105180.0,0.25689745]
[1750310004340,0.35901419,105180.0,105170.0,0.23384975]
[1750310004564,0.35901419,105180.0,105170.0,0.54128989]
[1750310004565,0.56817869,105180.0,105170.0,0.54128989]
[1750310004784,0.56817869,105180.0,105170.0,0.50708193]
[1750310005010,0.55867182,105180.0,105170.0,0.51659007]
[1750310005232,0.55867182,105180.0,105170.0,0.52609812]
[1750310005460,0.55867182,105180.0,105170.0,0.5084201]
[1750310005688,0.55867182,105180.0,105170.0,0.52610717]
[1750310005921,0.35901419,105180.0,105170.0,0.55891504]
[1750310006156,0.36852088,105180.0,105170.0,0.59392282]
[1750310006375,0.37802821,105180.0,105170.0,0.59392282]
[1750310006582,0.36852079,105180.0,105170.0,0.59392282]
[1750310006814,0.37802802,105180.0,105170.0,0.59792282]
[1750310007069,0.35901365,105180.0,105170.0,0.59392282]
[1750310007272,0.36852079,105180.0,105170.0,0.59592282]
[1750310007815,0.37802812,105180.0,105170.0,0.59592282]
[1750310008026,0.37802812,105180.0,105170.0,0.59392282]
[1750310008250,0.36852079,105180.0,105170.0,0.57623575]
[1750310008515,0.36852079,105180.0,105170.0,0.59492436]
[1750310008718,0.37802812,105180.0,105170.0,0.59492436]
[1750310010220,0.37802812,105180.0,105170.0,0.59492084]
[1750310010423,0.38899312,105180.0,105170.0,0.59492084]
[1750310011274,0.38899312,105180.0,105170.0,0.59494075]
[1750310011698,0.38899312,105180.0,105170.0,0.56772797]
[1750310011908,0.57914333,105180.0,105170.0,0.55246281]
[1750310012139,0.56012968,105180.0,105170.0,0.25982504]
[1750310012346,0.56012968,105180.0,105170.0,0.41390504]
[1750310012726,0.55062254,105180.0,105170.0,0.41390504]
[1750310013026,0.55062254,105180.0,105170.0,0.21436271]
[1750310013027,0.56386743,105180.0,105170.0,0.21436271]
[1750310013234,0.58826743,105180.0,105170.0,0.21436271]
[1750310013650,0.61683643,105180.0,105170.0,0.02080271]
[1750310013851,0.63953643,105180.0,105170.0,0.21444271]
[1750310014269,0.53967652,105170.0,105160.0,0.37448028]
[1750310014474,0.56242874,105170.0,105160.0,0.37448028]
[1750310014606,0.56242874,105170.0,105160.0,0.19368]
[1750310015032,0.59099974,105170.0,105160.0,0.19368]
[1750310015241,0.59099974,105170.0,105160.0,0.20318931]
[1750310016071,0.59099974,105170.0,105160.0,0.04906931]
[1750310016275,0.59099974,105170.0,105160.0,0.03956]
[1750310016680,0.59199625,105170.0,105160.0,0.03956]
[1750310017089,0.37803562,105160.0,105150.0,0.4588715]
[1750310017293,0.3590179,105160.0,105150.0,0.55511326]
[1750310017493,0.37803616,105160.0,105150.0,0.55511326]
[1750310017883,0.37803616,105160.0,105150.0,0.56462285]
[1750310018631,0.36852694,105160.0,105150.0,0.56462285]
[1750310018878,0.39716069,105160.0,105150.0,0.56462285]
[1750310019297,0.37814225,105160.0,105150.0,0.56462285]
[1750310019503,0.3971597,105160.0,105150.0,0.56462285]
[1750310019941,0.3981597,105160.0,105150.0,0.56462285]
[1750310020396,0.38865084,105160.0,105150.0,0.56462285]
[1750310020611,0.40766847,105160.0,105150.0,0.56462285]
[1750310020817,0.40766838,105160.0,105150.0,0.56462285]
[1750310021057,0.39815952,105160.0,105150.0,0.56462285]
[1750310021247,0.40866829,105160.0,105150.0,0.56462285]
[1750310021452,0.41817724,105160.0,105150.0,0.56462285]
[1750310022287,0.40866829,105160.0,105150.0,0.41046285]
[1750310022492,0.41817724,105160.0,105150.0,0.56462285]
[1750310022693,0.40866865,105160.0,105150.0,0.56462285]
[1750310022913,0.41817769,105160.0,105150.0,0.56462285]
[1750310023124,0.4086691,105160.0,105150.0,0.56462285]
[1750310023323,0.39916006,105160.0,105150.0,0.37090285]
[1750310023589,0.39916006,105160.0,105150.0,0.56478285]
[1750310024326,0.42190376,105160.0,105150.0,0.56478285]
[1750310025158,0.40866901,105160.0,105150.0,0.56478285]
[1750310025564,0.39916006,105160.0,105150.0,0.56478285]
[1750310026902,0.40866901,105160.0,105150.0,0.56478285]
[1750310027578,0.41817814,105160.0,105150.0,0.56478285]
[1750310028017,0.44092668,105160.0,105150.0,0.56478285]
[1750310028843,0.43141755,105160.0,105150.0,0.56478285]
[1750310029054,0.44092924,105160.0,105150.0,0.56478285]
[1750310029462,0.42191116,105160.0,105150.0,0.56478285]
[1750310030089,0.4314202,105160.0,105150.0,0.56478285]
[1750310030492,0.42191116,105160.0,105150.0,0.56478285]
[1750310030701,0.4314202,105160.0,105150.0,0.56478285]
[1750310030914,0.44092933,105160.0,105150.0,0.56478285]
[1750310031383,0.44092987,105160.0,105150.0,0.56478285]
[1750310031785,0.44093041,105160.0,105150.0,0.56478285]
[1750310031994,0.62160793,105160.0,105150.0,0.30548367]
[1750310032203,0.43142155,105160.0,105150.0,0.51842303]
[1750310032624,0.62160793,105160.0,105150.0,0.50891344]
[1750310032834,0.61209889,105160.0,105150.0,0.19022201]
[1750310033045,0.62688976,105160.0,105150.0,0.39365223]
[1750310033255,0.60258976,105160.0,105150.0,0.41267231]
[1750310033471,0.60258976,105160.0,105150.0,0.42218217]
[1750310033905,0.60258976,105160.0,105150.0,0.43169194]
[1750310035901,0.60258976,105160.0,105150.0,0.23777194]
[1750310036112,0.60258976,105160.0,105150.0,0.42246217]
[1750310036324,0.60258976,105160.0,105150.0,0.21875231]
[1750310036535,0.60258976,105160.0,105150.0,0.41295231]
[1750310037360,0.60258976,105160.0,105150.0,0.42246208]
[1750310037566,0.60258976,105160.0,105150.0,0.44746208]
[1750310038748,0.60258976,105160.0,105150.0,0.42246208]
[1750310038958,0.41240302,105160.0,105150.0,0.42246208]
[1750310039457,0.42191161,105160.0,105150.0,0.43193176]
[1750310039666,0.42191161,105160.0,105150.0,0.43193113]
[1750310039866,0.45048661,105160.0,105150.0,0.43193113]
[1750310040079,0.44097748,105160.0,105150.0,0.43193113]
[1750310040288,0.45048661,105160.0,105150.0,0.43193113]
[1750310040491,0.44097748,105160.0,105150.0,0.43193113]
[1750310040821,0.44097748,105160.0,105150.0,0.45613113]
[1750310041280,0.45048661,105160.0,105150.0,0.45613113]
[1750310041904,0.43146853,105160.0,105150.0,0.45613113]
[1750310042124,0.44097739,105160.0,105150.0,0.48283113]
[1750310042622,0.4694075,105160.0,105150.0,0.48283113]
[1750310043088,0.45038996,105160.0,105150.0,0.48283113]
[1750310043320,0.39338485,105160.0,105150.0,0.57907289]
[1750310043999,0.39238485,105160.0,105150.0,0.57907289]
[1750310044213,0.39238485,105160.0,105150.0,0.58007289]
[1750310046057,0.36863375,105160.0,105150.0,0.58007289]
[1750310046264,0.37814225,105160.0,105150.0,0.58007289]
[1750310046538,0.37814225,105160.0,105150.0,0.58107289]
[1750310046941,0.40096703,105160.0,105150.0,0.58107289]
[1750310047550,0.37814225,105160.0,105150.0,0.58107289]
[1750310047961,0.36863375,105160.0,105150.0,0.58107289]
[1750310048157,0.37814225,105160.0,105150.0,0.58107289]
[1750310048306,0.36863375,105160.0,105150.0,0.58107289]
[1750310048510,0.37814225,105160.0,105150.0,0.58107289]
[1750310049735,0.36863375,105160.0,105150.0,0.58107289]
[1750310050436,0.37814225,105160.0,105150.0,0.58107289]
[1750310050839,0.38765093,105160.0,105150.0,0.58107289]
[1750310050977,0.37814225,105160.0,105150.0,0.58107289]
[1750310051182,0.36863375,105160.0,105150.0,0.58107289]
[1750310051395,0.37814225,105160.0,105150.0,0.58107289]
[1750310051975,0.40666892,105160.0,105150.0,0.52090321]
[1750310052195,0.42949005,105160.0,105150.0,0.57290321]
[1750310052404,0.41998101,105160.0,105150.0,0.57290321]
[1750310052614,0.39145497,105160.0,105150.0,0.57290321]
[1750310052825,0.39145497,105160.0,105150.0,0.57190321]
[1750310053035,0.39245497,105160.0,105150.0,0.57190321]
[1750310053457,0.42102697,105160.0,105150.0,0.57090321]
[1750310053879,0.42202697,105160.0,105150.0,0.57090321]
[1750310055126,0.37063375,105160.0,105150.0,0.57090321]
[1750310059211,0.36923373,105160.0,105150.0,0.57090321]
[1750310067323,0.02923373,105160.0,105150.0,0.57090321]
[1750310068285,0.02723373,105160.0,105150.0,0.57090321]
[1750310068710,0.3818326,105170.0,105160.0,0.27041323]
[1750310068911,0.38183251,105170.0,105160.0,0.34125499]
[1750310069381,0.39134047,105170.0,105160.0,0.46927499]
[1750310069998,0.39234047,105170.0,105160.0,0.46927499]
[1750310070218,0.40284861,105170.0,105160.0,0.46927499]
[1750310070427,0.42127858,105170.0,105160.0,0.46927499]
[1750310070835,0.43078663,105170.0,105160.0,0.46927499]
[1750310071014,0.42127858,105170.0,105160.0,0.46927499]
[1750310071251,0.42127849,105170.0,105160.0,0.46927499]
[1750310071458,0.43078645,105170.0,105160.0,0.46927499]
[1750310071910,0.42127849,105170.0,105160.0,0.46927499]
[1750310072117,0.43078654,105170.0,105160.0,0.46927499]
[1750310072324,0.42127849,105170.0,105160.0,0.46927499]
[1750310072506,0.41177062,105170.0,105160.0,0.46927499]
[1750310072732,0.42127849,105170.0,105160.0,0.46927499]
[1750310073021,0.43078654,105170.0,105160.0,0.46927499]
[1750310073267,0.43078663,105170.0,105160.0,0.46927499]
[1750310073682,0.44029486,105170.0,105160.0,0.46927499]
[1750310073901,0.42127849,105170.0,105160.0,0.46927499]
[1750310074035,0.44029459,105170.0,105160.0,0.46927499]
[1750310074584,0.44029459,105170.0,105160.0,0.50895499]
[1750310075151,0.44029522,105170.0,105160.0,0.50895499]
[1750310076615,0.43078699,105170.0,105160.0,0.50895499]
[1750310077331,0.42127885,105170.0,105160.0,0.50895499]
[1750310077541,0.43078708,105170.0,105160.0,0.50895499]
[1750310077746,0.43078699,105170.0,105160.0,0.50895499]
[1750310078525,0.44029522,105170.0,105160.0,0.50895499]
[1750310078728,0.41177089,105170.0,105160.0,0.50895499]
[1750310078955,0.41177089,105170.0,105160.0,0.35463499]
[1750310079303,0.41177089,105170.0,105160.0,0.50891499]
[1750310079714,0.4117708,105170.0,105160.0,0.50891499]
[1750310080210,0.42127885,105170.0,105160.0,0.50891499]
[1750310080451,0.42127876,105170.0,105160.0,0.50891499]
[1750310081173,0.41177098,105170.0,105160.0,0.50891499]
[1750310081408,0.40226302,105170.0,105160.0,0.50891499]
[1750310082093,0.39275533,105170.0,105160.0,0.50891499]
[1750310082309,0.40226293,105170.0,105160.0,0.53431499]
[1750310084297,0.4117708,105170.0,105160.0,0.53431499]
[1750310084494,0.40226293,105170.0,105160.0,0.53431499]
[1750310084746,0.41177071,105170.0,105160.0,0.53431499]
[1750310084975,0.40226293,105170.0,105160.0,0.53431499]
[1750310085177,0.41177071,105170.0,105160.0,0.53431499]
[1750310085391,0.40226293,105170.0,105160.0,0.53431499]
[1750310086563,0.41177071,105170.0,105160.0,0.53431499]
[1750310087042,0.40226293,105170.0,105160.0,0.53431499]
[1750310089795,0.39275533,105170.0,105160.0,0.53431499]
[1750310090047,0.40226302,105170.0,105160.0,0.53431499]
[1750310090242,0.40226293,105170.0,105160.0,0.53431499]
[1750310090692,0.06226293,105170.0,105160.0,0.53431499]
[1750310090891,0.03944571,105170.0,105160.0,0.53431499]
[1750310091107,0.03944571,105170.0,105160.0,0.52480631]
[1750310091354,0.12947791,105170.0,105160.0,0.50875535]
[1750310091589,0.33870932,105170.0,105160.0,0.40440473]
[1750310091807,0.35201858,105170.0,105160.0,0.41391377]
[1750310092022,0.35870928,105170.0,105160.0,0.41391377]
[1750310092244,0.35870928,105170.0,105160.0,0.42342272]
[1750310092673,0.68920105,105170.0,105160.0,0.42342272]
[1750310093119,0.68251035,105170.0,105160.0,0.42342272]
[1750310093767,0.68251035,105170.0,105160.0,0.41391377]
[1750310096094,0.68251035,105170.0,105160.0,0.43293158]
[1750310096726,0.68251035,105170.0,105160.0,0.42342272]
[1750310097197,0.68251035,105170.0,105160.0,0.41391377]
[1750310098256,0.67300203,105170.0,105160.0,0.40440473]
[1750310099073,0.67300203,105170.0,105160.0,0.3948956]
[1750310099300,0.66349362,105170.0,105160.0,0.3948956]
[1750310100349,0.66349362,105170.0,105160.0,0.2393756]
[1750310100568,0.66349362,105170.0,105140.0,0.2934501]
[1750310100569,0.19969551,105160.0,105140.0,0.22630663]
[1750310100773,0.36852967,105150.0,105140.0,0.38164973]
[1750310100984,0.59107916,105150.0,105140.0,0.33562893]
[1750310101190,0.64447916,105150.0,105140.0,0.41404878]
[1750310101597,0.4008747,105150.0,105140.0,0.43306994]
[1750310101804,0.4008747,105150.0,105140.0,0.43406994]
[1750310102232,0.59107916,105150.0,105140.0,0.42455945]
[1750310102427,0.59107916,105150.0,105140.0,0.42555945]
[1750310102672,0.64447916,105150.0,105140.0,0.23023945]
[1750310102880,0.00951366,105110.0,105100.0,0.63978]
[1750310103113,0.53979051,105110.0,105100.0,1.00506416]
[1750310103363,0.56262541,105110.0,105100.0,0.79574]
[1750310103563,0.56837851,105110.0,105100.0,0.39554969]
[1750310103806,0.56837851,105110.0,105100.0,0.19574]
[1750310104011,0.55886485,105110.0,105100.0,0.19694]
[1750310104231,0.53980951,105100.0,105090.0,0.09068203]
[1750310104446,0.36854341,105100.0,105090.0,0.40279464]
[1750310104646,0.35902885,105100.0,105090.0,0.41230965]
[1750310104885,0.36854341,105100.0,105090.0,0.4219253]
[1750310105514,0.37805806,105100.0,105090.0,0.4219253]
[1750310105812,0.3875728,105100.0,105090.0,0.2250853]
[1750310106023,0.41563626,105100.0,105090.0,0.42188549]
[1750310106451,0.41563626,105100.0,105090.0,0.4314005]
[1750310106654,0.60593121,105100.0,105090.0,0.42184549]
[1750310106877,0.59641683,105100.0,105090.0,0.42184549]
[1750310107516,0.40612188,105100.0,105090.0,0.43136059]
[1750310107740,0.40612188,105100.0,105090.0,0.43135995]
[1750310107741,0.38709249,105100.0,105090.0,0.43135995]
[1750310107948,0.39660669,105100.0,105090.0,0.43135995]
[1750310108908,0.38709159,105100.0,105090.0,0.43135995]
[1750310109847,0.37757739,105100.0,105090.0,0.43135995]
[1750310110057,0.3966057,105100.0,105090.0,0.43135995]
[1750310110473,0.39660561,105100.0,105090.0,0.43135995]
[1750310111422,0.38709141,105100.0,105090.0,0.43135995]
[1750310111858,0.3966057,105100.0,105090.0,0.43135995]
[1750310112568,0.00951483,105090.0,105080.0,0.22691094]
[1750310112781,0.34951483,105090.0,105080.0,0.53747759]
[1750310112984,0.34,105090.0,105080.0,0.57219369]
[1750310113200,0.368591,105090.0,105080.0,0.41623369]
[1750310113402,0.368591,105090.0,105080.0,0.57219369]
[1750310113833,0.028591,105090.0,105080.0,0.57319369]
[1750310113972,0.028591,105090.0,105080.0,0.57419369]
[1750310114388,0.04762112,105090.0,105080.0,0.57419369]
[1750310114841,0.04762112,105090.0,105080.0,0.57418846]
[1750310115243,0.04835585,105090.0,105080.0,0.57418846]
[1750310115450,0.05787095,105090.0,105080.0,0.57418846]
[1750310115966,0.05787105,105090.0,105080.0,0.57418846]
[1750310116209,0.04835585,105090.0,105080.0,0.57418846]
[1750310116439,0.05787095,105090.0,105080.0,0.57418846]
[1750310116677,0.04835585,105090.0,105080.0,0.57418846]
[1750310116902,0.04835585,105090.0,105080.0,0.37750846]
[1750310117115,0.03884093,105090.0,105080.0,0.57414846]
[1750310119233,0.03884093,105090.0,105080.0,0.57414974]
[1750310120368,0.03884093,105090.0,105080.0,0.5565088]
[1750310120578,0.03884093,105090.0,105080.0,0.57416119]
[1750310122177,0.03884093,105090.0,105080.0,0.5565088]
[1750310122858,0.37884093,105090.0,105080.0,0.5565088]
[1750310124129,0.03884093,105090.0,105080.0,0.5565088]
[1750310130953,0.01024993,105090.0,105080.0,0.5565088]
[1750310131154,0.39128866,105100.0,105090.0,0.21885892]
[1750310131359,0.39797877,105100.0,105090.0,0.36550068]
[1750310131558,0.42650255,105100.0,105090.0,0.36550068]
[1750310131771,0.41981244,105100.0,105090.0,0.36550068]
[1750310131971,0.05128866,105100.0,105090.0,0.36550068]
[1750310132226,0.39122544,105110.0,105100.0,0.24553809]
[1750310132447,0.39122544,105110.0,105100.0,0.49749985]
[1750310132448,0.42650026,105110.0,105100.0,0.49749985]
[1750310133169,0.42650026,105110.0,105100.0,0.47079985]
[1750310133482,0.42850026,105110.0,105100.0,0.47079985]
[1750310133707,0.42850026,105110.0,105100.0,0.49669985]
[1750310134431,0.42181144,105110.0,105100.0,0.49669985]
[1750310134632,0.42481144,105110.0,105100.0,0.53709985]
[1750310135171,0.43522493,105110.0,105100.0,0.53709985]
[1750310137415,0.43522493,105110.0,105100.0,0.56359985]
[1750310137644,0.40670115,105110.0,105100.0,0.56359985]
[1750310149887,0.04399949,105110.0,105100.0,0.56359985]
[1750310151504,0.01541349,105110.0,105100.0,0.56359985]
[1750310155187,0.01541349,105110.0,105100.0,0.53665985]
[1750310155595,0.01541349,105110.0,105100.0,0.34097985]
[1750310155808,0.29416246,105120.0,105110.0,0.21881728]
[1750310156006,0.3036753,105120.0,105110.0,0.31505913]
[1750310156230,0.3036753,105120.0,105110.0,0.32457233]
[1750310156966,0.00951302,105110.0,105100.0,0.19980897]
[1750310157172,0.30316309,105120.0,105110.0,0.25921728]
[1750310157684,0.50293477,105120.0,105110.0,0.21881747]
[1750310157888,0.49393477,105120.0,105110.0,0.41453747]
[1750310158098,0.01902668,105110.0,105100.0,0.30556502]
[1750310158313,0.08434034,105110.0,105100.0,0.34596502]
[1750310158516,0.10130803,105110.0,105100.0,0.50124502]
[1750310158735,0.47940778,105110.0,105100.0,0.50124502]
[1750310158944,0.66017161,105110.0,105100.0,0.50128565]
[1750310159155,0.66017161,105110.0,105100.0,0.51079994]
[1750310159362,0.68298622,105110.0,105100.0,0.51079994]
[1750310159574,0.34,105100.0,105090.0,0.20934299]
[1750310159782,0.3917,105100.0,105090.0,0.50130475]
[1750310160212,0.40121438,105100.0,105090.0,0.50130475]
[1750310160392,0.40121438,105100.0,105090.0,0.34598475]
[1750310160658,0.40121429,105100.0,105090.0,0.50130475]
[1750310160871,0.41072867,105100.0,105090.0,0.34598475]
[1750310161079,0.41072831,105100.0,105090.0,0.50130475]
[1750310161289,0.42024224,105100.0,105090.0,0.50130475]
[1750310161498,0.42975671,105100.0,105090.0,0.50130475]
[1750310161709,0.42975671,105100.0,105090.0,0.34598475]
[1750310161918,0.42975671,105100.0,105090.0,0.50126475]
[1750310162136,0.43927127,105100.0,105090.0,0.50126475]
[1750310162564,0.46786027,105100.0,105090.0,0.50126475]
[1750310162772,0.45834571,105100.0,105090.0,0.34598475]
[1750310163001,0.45834571,105100.0,105090.0,0.50126475]
[1750310163218,0.46786027,105100.0,105090.0,0.50126475]
[1750310164363,0.45834571,105100.0,105090.0,0.50126475]
[1750310164564,0.46786027,105100.0,105090.0,0.30558475]
[1750310165030,0.46786027,105100.0,105090.0,0.51050031]
[1750310165800,0.45834571,105100.0,105090.0,0.51050031]
[1750310166060,0.43931695,105100.0,105090.0,0.51050031]
[1750310166312,0.45834535,105100.0,105090.0,0.51050031]
[1750310167036,0.67145723,105100.0,105090.0,0.25901938]
[1750310167282,0.64286823,105100.0,105090.0,0.43320968]
[1750310167533,0.67145923,105100.0,105090.0,0.43320968]
[1750310168072,0.67145923,105100.0,105090.0,0.27804968]
[1750310168074,0.67145923,105100.0,105090.0,0.42369458]
[1750310168542,0.66194512,105100.0,105090.0,0.42369458]
[1750310169046,0.47165017,105100.0,105090.0,0.43320968]
[1750310169551,0.48116491,105100.0,105090.0,0.43320968]
[1750310170978,0.47165017,105100.0,105090.0,0.43320904]
[1750310171193,0.46213552,105100.0,105090.0,0.43320904]
[1750310171419,0.09713552,105100.0,105090.0,0.43320904]
[1750310171641,0.41431985,105100.0,105090.0,0.43320904]
[1750310171842,0.41043552,105100.0,105090.0,0.43320904]
[1750310172054,0.41043498,105100.0,105090.0,0.43320904]
[1750310172263,0.41994954,105100.0,105090.0,0.43320904]
[1750310174579,0.40092069,105100.0,105090.0,0.43320904]
[1750310174785,0.07994918,105100.0,105090.0,0.5294508]
[1750310175000,0.39713351,105100.0,105090.0,0.5294508]
[1750310175228,0.41992794,105100.0,105090.0,0.5294508]
[1750310175723,0.41992794,105100.0,105090.0,0.5840508]
[1750310176348,0.41041365,105100.0,105090.0,0.5840508]
[1750310177207,0.39138543,105100.0,105090.0,0.5840508]
[1750310177443,0.028591,105100.0,105090.0,0.5840508]
[1750310178208,0.38475892,105110.0,105100.0,0.27353809]
[1750310178441,0.41334492,105110.0,105100.0,0.36977985]
[1750310178896,0.42285812,105110.0,105100.0,0.36977985]
[1750310179635,0.4058319,105110.0,105100.0,0.36977985]
[1750310179870,0.41334492,105110.0,105100.0,0.36977985]
[1750310180072,0.42485812,105110.0,105100.0,0.36977985]
[1750310181224,0.41534492,105110.0,105100.0,0.36977985]
[1750310183897,0.4058319,105110.0,105100.0,0.36977985]
[1750310184117,0.0658319,105110.0,105100.0,0.36977985]
[1750310184328,0.04304076,105110.0,105100.0,0.36977985]
[1750310185064,0.05255396,105110.0,105100.0,0.36977985]
[1750310185269,0.04304076,105110.0,105100.0,0.36977985]
[1750310185490,0.05255387,105110.0,105100.0,0.36977985]
[1750310186441,0.04304076,105110.0,105100.0,0.36977985]
[1750310189001,0.01445476,105110.0,105100.0,0.36977985]
[1750310193299,0.04299473,105110.0,105100.0,0.51003985]
[1750310193484,0.05250839,105110.0,105100.0,0.51003985]
[1750310193706,0.34951402,105100.0,105090.0,0.20934336]
[1750310193926,0.36854332,105100.0,105090.0,0.51006087]
[1750310194140,0.38757154,105100.0,105090.0,0.52909098]
[1750310195982,0.38757154,105100.0,105090.0,0.33413098]
[1750310196191,0.41038444,105100.0,105090.0,0.52897098]
[1750310197034,0.64566546,105100.0,105090.0,0.50990105]
[1750310197487,0.67425346,105100.0,105090.0,0.51941615]
[1750310198012,0.48395851,105100.0,105090.0,0.51941615]
[1750310198235,0.41994377,105100.0,105090.0,0.52893116]
[1750310198668,0.42945851,105100.0,105090.0,0.50990105]
[1750310199135,0.42945851,105100.0,105090.0,0.51941615]
[1750310199602,0.61975346,105100.0,105090.0,0.50990105]
[1750310203308,0.61023944,105100.0,105090.0,0.50038585]
[1750310203557,0.61023944,105100.0,105090.0,0.50990123]
[1750310203960,0.60072515,105100.0,105090.0,0.50990123]
[1750310204161,0.59121059,105100.0,105090.0,0.50990123]
[1750310205017,0.59121059,105100.0,105090.0,0.34554585]
[1750310205221,0.63729585,105100.0,105090.0,0.50030585]
[1750310205658,0.63729585,105100.0,105090.0,0.50982123]
[1750310206969,0.58169585,105100.0,105090.0,0.50982123]
[1750310207173,0.63829585,105100.0,105090.0,0.49079038]
[1750310207356,0.63829585,105100.0,105090.0,0.50030585]
[1750310208976,0.0651152,105090.0,105080.0,0.43774713]
[1750310209192,0.07463067,105090.0,105080.0,0.73814526]
[1750310209401,0.04683067,105090.0,105080.0,0.73814526]
[1750310209610,0.01903067,105090.0,105080.0,0.73814526]
[1750310210317,0.01903067,105090.0,105080.0,0.74014526]
[1750310210532,0.02854623,105090.0,105080.0,0.74014526]
[1750310210942,0.03806188,105090.0,105080.0,0.58546526]
[1750310211170,0.03806188,105090.0,105080.0,0.74018526]
[1750310211386,0.03806188,105090.0,105080.0,0.74118526]
[1750310212135,0.03806188,105090.0,105080.0,0.58646526]
[1750310212342,0.03806188,105090.0,105080.0,0.74110526]
[1750310212552,0.04757698,105090.0,105080.0,0.74110526]
[1750310213060,0.03806133,105090.0,105080.0,0.74110526]
[1750310213314,0.02854568,105090.0,105080.0,0.76990526]
[1750310214666,0.01902993,105090.0,105080.0,0.79640526]
[1750310215970,0.60072531,105100.0,105090.0,0.20934373]
[1750310216184,0.40091519,105100.0,105090.0,0.21885883]
[1750310216397,0.41994377,105100.0,105090.0,0.22837384]
[1750310216814,0.42945842,105100.0,105090.0,0.22837384]
[1750310217781,0.24226428,105100.0,105090.0,0.22837384]
[1750310217989,0.08945842,105100.0,105090.0,0.22837384]
[1750310218190,0.06664552,105100.0,105090.0,0.28247384]
[1750310219907,0.40664552,105100.0,105090.0,0.28247384]
[1750310220203,0.42945842,105100.0,105090.0,0.25517384]
[1750310220946,0.43897316,105100.0,105090.0,0.22837384]
[1750310221577,0.6102398,105100.0,105090.0,0.19982853]
[1750310221787,0.6102398,105100.0,105090.0,0.20934391]
[1750310222003,0.6639398,105100.0,105090.0,0.36394391]
[1750310222214,0.65442524,105100.0,105090.0,0.36394391]
[1750310222456,0.64491059,105100.0,105090.0,0.35442853]
[1750310224112,0.0095152,105090.0,105080.0,0.39902862]
[1750310224323,0.0095152,105090.0,105080.0,0.55362862]
[1750310224529,0.0190303,105090.0,105080.0,0.55362862]
[1750310225188,0.00951501,105090.0,105080.0,0.55362862]
[1750310225401,0.00951492,105090.0,105080.0,0.55462862]
[1750310225819,0.01903002,105090.0,105080.0,0.55662862]
[1750310226035,0.63766603,105100.0,105090.0,0.20934373]
[1750310226243,0.61026603,105100.0,105090.0,0.20934373]
[1750310227506,0.61026603,105100.0,105090.0,0.19982853]
[1750310227918,0.63827803,105100.0,105090.0,0.20934391]
[1750310228125,0.61077803,105100.0,105090.0,0.2188592]
[1750310229032,0.58167803,105100.0,105090.0,0.2188592]
[1750310231206,0.63517803,105100.0,105090.0,0.20934391]
[1750310231415,0.62566365,105100.0,105090.0,0.20934391]
[1750310232360,0.65421279,105100.0,105090.0,0.20934391]
[1750310232799,0.64469814,105100.0,105090.0,0.19982853]
[1750310233008,0.65139168,105100.0,105090.0,0.19982853]
[1750310233223,0.65139168,105100.0,105090.0,0.20934391]
[1750310235208,0.60000323,105100.0,105090.0,0.20934391]
[1750310235411,0.6514137,105100.0,105090.0,0.20934391]
[1750310236039,0.5979137,105100.0,105090.0,0.20934391]
[1750310236433,0.6536137,105100.0,105090.0,0.20934391]
[1750310236706,0.6536137,105100.0,105090.0,0.24914391]
[1750310238371,0.5979137,105100.0,105090.0,0.25865911]
[1750310239184,0.59122016,105100.0,105090.0,0.25865911]
[1750310239604,0.60073463,105100.0,105090.0,0.25865911]
[1750310239817,0.60073463,105100.0,105090.0,0.26817421]
[1750310240029,0.57217326,105100.0,105090.0,0.26817421]
[1750310243942,0.57217326,105100.0,105090.0,0.42273421]
[1750310246329,0.38187831,105100.0,105090.0,0.43224922]
[1750310248990,0.38187831,105100.0,105090.0,0.42273421]
[1750310250453,0.57217326,105100.0,105090.0,0.42273421]
[1750310252692,0.38187831,105100.0,105090.0,0.42273421]
[1750310252895,0.38187831,105100.0,105090.0,0.43224922]
[1750310253991,0.57217326,105100.0,105090.0,0.43224922]
[1750310255341,0.57217326,105100.0,105090.0,0.42273421]
[1750310255701,0.57217326,105100.0,105090.0,0.40370391]